[Event "Nové Hrady - Rapid A"]
[Site "Nové Hrady, Czech Republic"]
[Date "2024.08.10"]
[Round "7.4"]
[White "Valiyev, Adil"]
[Black "Rendl, Luboš"]
[Result "0-1"]
[TimeControl "2x15min+5s"]
[WhiteFideId "23752246"]
[BlackFideId "23750197"]
[WhiteElo "1469"]
[BlackElo "1848"]

1. e4 {[%clk 00:15:07]} {[%emt 00:00:03]} c6 {[%clk 00:14:35]} {[%emt
00:00:35]} 2. d4 {[%clk 00:15:10]} {[%emt 00:00:02]} d5 {[%clk 00:14:39]} 3. e5
{[%clk 00:15:14]} {[%emt 00:00:03]} c5 {[%clk 00:14:42]} {[%emt 00:00:02]} 4.
c3 {[%clk 00:15:17]} {[%emt 00:00:02]} Nc6 {[%clk 00:14:36]} {[%emt 00:00:11]}
5. Nf3 {[%clk 00:15:19]} {[%emt 00:00:02]} Bg4 {[%clk 00:14:38]} {[%emt
00:00:04]} 6. Be2 {[%clk 00:15:17]} {[%emt 00:00:06]} e6 {[%clk 00:14:40]}
{[%emt 00:00:04]} 7. h3 {[%clk 00:15:20]} {[%emt 00:00:02]} Bf5 {[%clk
00:14:31]} {[%emt 00:00:14]} 8. Qb3 {[%clk 00:15:03]} {[%emt 00:00:21]} Qb6
{[%clk 00:13:54]} {[%emt 00:00:42]} 9. Qxb6 {[%clk 00:14:07]} {[%emt 00:01:01]}
axb6 {[%clk 00:13:58]} {[%emt 00:00:02]} 10. Be3 {[%clk 00:14:10]} Bxb1 {[%clk
00:13:15]} {[%emt 00:00:48]} 11. Rxb1 {[%clk 00:14:02]} {[%emt 00:00:13]} Rxa2
{[%clk 00:13:17]} {[%emt 00:00:03]} 12. Bb5 {[%clk 00:13:37]} {[%emt 00:00:30]}
c4 {[%clk 00:11:46]} {[%emt 00:01:37]} 13. O-O {[%clk 00:13:29]} {[%emt
00:00:13]} Ra5 {[%clk 00:08:44]} {[%emt 00:03:06]} 14. Bxc6+ {[%clk 00:13:27]}
{[%emt 00:00:07]} bxc6 {[%clk 00:08:47]} {[%emt 00:00:02]} 15. Ra1 {[%clk
00:13:28]} {[%emt 00:00:04]} Be7 {[%clk 00:08:25]} {[%emt 00:00:27]} 16. Nd2
{[%clk 00:13:14]} {[%emt 00:00:19]} Nh6 {[%clk 00:07:56]} {[%emt 00:00:35]} 17.
Bxh6 {[%clk 00:12:33]} {[%emt 00:00:45]} gxh6 {[%clk 00:07:59]} {[%emt
00:00:02]} 18. b3 {[%clk 00:12:36]} {[%emt 00:00:02]} cxb3 {[%clk 00:05:55]}
{[%emt 00:02:09]} 19. Nxb3 {[%emt 00:00:04]} Rb5 {[%clk 00:05:37]} {[%emt
00:00:22]} 20. Nd2 {[%clk 00:12:22]} {[%emt 00:00:21]} O-O {[%clk 00:05:22]}
{[%emt 00:00:21]} 21. Ra7 {[%clk 00:12:22]} {[%emt 00:00:05]} Re8 {[%clk
00:04:51]} {[%emt 00:00:36]} 22. Rc7 {[%clk 00:11:51]} {[%emt 00:00:35]} c5
{[%clk 00:04:14]} {[%emt 00:00:42]} 23. Ra1 {[%clk 00:11:25]} {[%emt 00:00:30]}
c4 {[%clk 00:03:39]} {[%emt 00:00:41]} 24. Raa7 {[%clk 00:11:21]} {[%emt
00:00:13]} Kf8 {[%clk 00:03:42]} 25. Rcb7 {[%clk 00:10:33]} {[%emt 00:00:48]}
Rb2 {[%clk 00:03:43]} {[%emt 00:00:07]} 26. Nf3 {[%clk 00:10:36]} {[%emt
00:00:01]} Rb3 {[%clk 00:03:25]} {[%emt 00:00:23]} 27. Ra1 {[%clk 00:10:13]}
{[%emt 00:00:27]} Rxc3 {[%clk 00:02:43]} {[%emt 00:00:48]} 28. Rxb6 {[%clk
00:10:12]} {[%emt 00:00:06]} Rb3 {[%clk 00:02:45]} {[%emt 00:00:04]} 29. Rxb3
{[%clk 00:09:56]} {[%emt 00:00:21]} cxb3 {[%clk 00:02:48]} 30. Rb1 {[%clk
00:10:00]} {[%emt 00:00:02]} Rb8 {[%clk 00:02:37]} {[%emt 00:00:16]} 31. Kf1
{[%clk 00:09:55]} {[%emt 00:00:11]} b2 {[%clk 00:02:23]} {[%emt 00:00:18]} 32.
Ke2 {[%clk 00:09:42]} {[%emt 00:00:17]} Ba3 {[%clk 00:02:24]} {[%emt 00:00:05]}
33. Ne1 {[%clk 00:09:12]} {[%emt 00:00:33]} Rc8 {[%clk 00:01:58]} {[%emt
00:00:34]} 34. Kd3 {[%clk 00:08:35]} {[%emt 00:00:41]} Rc1 {[%clk 00:01:56]}
{[%emt 00:00:07]} 35. Nc2 {[%clk 00:08:16]} {[%emt 00:00:23]} Rxb1 {[%clk
00:01:51]} {[%emt 00:00:11]} 36. Nxa3 {[%clk 00:08:18]} {[%emt 00:00:02]} Ra1
{[%clk 00:01:53]} {[%emt 00:00:04]} 37. Kc2 {[%clk 00:08:20]} {[%emt 00:00:03]}
Rxa3 {[%clk 00:01:51]} {[%emt 00:00:07]} 38. Kxb2 {[%clk 00:08:23]} {[%emt
00:00:03]} Rd3 {[%clk 00:01:53]} {[%emt 00:00:03]} 39. Kc2 {[%clk 00:08:24]}
{[%emt 00:00:03]} Rxd4 {[%clk 00:01:56]} {[%emt 00:00:02]} 0-1

[Event "Nové Hrady - Rapid A"]
[Site "Nové Hrady, Czech Republic"]
[Date "2024.08.10"]
[Round "7.7"]
[White "Brabcová, Nikola"]
[Black "Junek, Petr"]
[Result "1/2-1/2"]
[TimeControl "2x15min+5s"]
[WhiteFideId "23739371"]
[BlackFideId "23739282"]
[WhiteElo "1529"]
[BlackElo "1762"]

1. e4 {[%clk 00:15:08]} {[%emt 00:00:02]} c5 {[%clk 00:15:09]} {[%emt
00:00:02]} 2. Nf3 {[%clk 00:15:06]} {[%emt 00:00:06]} Nc6 {[%clk 00:15:12]}
{[%emt 00:00:02]} 3. d4 {[%clk 00:15:08]} {[%emt 00:00:03]} cxd4 {[%clk
00:15:16]} 4. Nxd4 {[%clk 00:15:11]} {[%emt 00:00:04]} Nf6 {[%clk 00:15:17]}
{[%emt 00:00:04]} 5. Nc3 {[%clk 00:15:12]} {[%emt 00:00:04]} e5 {[%clk
00:15:20]} 6. Ndb5 {[%clk 00:15:13]} {[%emt 00:00:05]} d6 {[%clk 00:15:23]} 7.
Bg5 {[%clk 00:14:59]} {[%emt 00:00:19]} a6 {[%clk 00:15:27]} 8. Na3 {[%clk
00:15:02]} {[%emt 00:00:04]} b5 {[%clk 00:15:31]} 9. Nab1 {[%clk 00:15:01]}
{[%emt 00:00:05]} Be7 {[%clk 00:15:03]} {[%emt 00:00:33]} 10. Nd2 {[%clk
00:14:43]} {[%emt 00:00:22]} Nd4 {[%clk 00:14:51]} {[%emt 00:00:19]} 11. Nf3
{[%clk 00:14:34]} {[%emt 00:00:11]} Bg4 {[%clk 00:14:34]} {[%emt 00:00:25]} 12.
Be2 {[%clk 00:14:13]} {[%emt 00:00:25]} Nxe2 {[%clk 00:14:19]} {[%emt
00:00:21]} 13. Qxe2 {[%clk 00:14:12]} {[%emt 00:00:05]} O-O {[%clk 00:14:20]}
{[%emt 00:00:04]} 14. h3 {[%clk 00:13:12]} {[%emt 00:01:06]} Be6 {[%clk
00:14:23]} {[%emt 00:00:01]} 15. g4 {[%clk 00:12:10]} {[%emt 00:01:07]} Rc8
{[%clk 00:12:29]} {[%emt 00:02:00]} 16. Nh4 {[%clk 00:10:06]} {[%emt 00:02:03]}
Qb6 {[%clk 00:09:25]} {[%emt 00:03:13]} 17. Nf5 {[%clk 00:09:32]} {[%emt
00:00:40]} Bd8 {[%clk 00:07:32]} {[%emt 00:01:58]} 18. Qd2 {[%clk 00:08:22]}
{[%emt 00:01:16]} Rxc3 {[%clk 00:06:01]} {[%emt 00:01:35]} 19. bxc3 {[%clk
00:04:22]} {[%emt 00:04:05]} Nxe4 {[%clk 00:06:04]} {[%emt 00:00:03]} 20. Bxd8
{[%clk 00:04:02]} {[%emt 00:00:24]} Rxd8 {[%clk 00:03:06]} {[%emt 00:03:03]} 21.
Qe2 {[%clk 00:03:11]} {[%emt 00:00:53]} Nxc3 {[%clk 00:02:04]} {[%emt
00:01:11]} 22. Qd3 {[%clk 00:02:56]} {[%emt 00:00:18]} Nxa2 {[%clk 00:01:49]}
{[%emt 00:00:21]} 23. h4 {[%clk 00:01:36]} {[%emt 00:01:25]} Nb4 {[%clk
00:01:40]} {[%emt 00:00:15]} 24. Qd2 {[%clk 00:01:09]} {[%emt 00:00:29]} Bxf5
{[%clk 00:00:58]} {[%emt 00:00:49]} 25. gxf5 {[%clk 00:01:02]} {[%emt
00:00:12]} Qc6 {[%clk 00:00:53]} {[%emt 00:00:11]} 26. Rg1 {[%clk 00:00:27]}
{[%emt 00:00:40]} Nxc2+ {[%clk 00:00:55]} {[%emt 00:00:03]} 27. Kf1 {[%clk
00:00:16]} {[%emt 00:00:15]} Nxa1 {[%clk 00:00:19]} {[%emt 00:00:41]} 28. Qg5
{[%clk 00:00:10]} {[%emt 00:00:12]} Qc4+ {[%clk 00:00:23]} 29. Kg2 {[%clk
00:00:12]} {[%emt 00:00:04]} Rc8 {[%clk 00:00:14]} {[%emt 00:00:14]} 30. Kh1
{[%clk 00:00:12]} {[%emt 00:00:05]} Qe4+ {[%clk 00:00:17]} {[%emt 00:00:06]} 31.
Rg2 {[%clk 00:00:14]} Rc1+ {[%clk 00:00:10]} {[%emt 00:00:10]} 32. Qxc1 {[%clk
00:00:17]} {[%emt 00:00:03]} Qxh4+ {[%clk 00:00:07]} {[%emt 00:00:08]} 33. Rh2
{[%clk 00:00:20]} {[%emt 00:00:02]} Qe4+ {[%clk 00:00:11]} {[%emt 00:00:01]} 34.
Kg1 {[%clk 00:00:22]} {[%emt 00:00:03]} Qg4+ {[%clk 00:00:14]} {[%emt
00:00:01]} 35. Rg2 {[%clk 00:00:24]} {[%emt 00:00:03]} Qxf5 {[%clk 00:00:14]}
{[%emt 00:00:06]} 36. Qxa1 {[%clk 00:00:24]} {[%emt 00:00:05]} Qc8 {[%clk
00:00:15]} {[%emt 00:00:04]} 37. Qe1 {[%clk 00:00:20]} {[%emt 00:00:07]} g6
{[%clk 00:00:19]} {[%emt 00:00:03]} 38. Qd2 {[%clk 00:00:20]} {[%emt 00:00:04]}
f5 {[%clk 00:00:22]} {[%emt 00:00:03]} 39. Qxd6 {[%clk 00:00:18]} {[%emt
00:00:06]} Qc1+ {[%clk 00:00:25]} {[%emt 00:00:02]} 40. Kh2 {[%clk 00:00:22]}
Qh6+ {[%clk 00:00:29]} {[%emt 00:00:03]} 41. Kg1 {[%clk 00:00:23]} {[%emt
00:00:04]} Qc1+ {[%clk 00:00:33]} {[%emt 00:00:01]} 42. Kh2 {[%clk 00:00:16]}
{[%emt 00:00:12]} Qh6+ {[%clk 00:00:36]} {[%emt 00:00:01]} 43. Kg3 {[%clk
00:00:07]} {[%emt 00:00:14]} Qf4+ {[%clk 00:00:35]} {[%emt 00:00:07]} 44. Kh3
{[%clk 00:00:09]} {[%emt 00:00:02]} Qh6+ {[%clk 00:00:24]} {[%emt 00:00:16]} 45.
Kg3 {[%clk 00:00:10]} {[%emt 00:00:04]} Qf4+ {[%clk 00:00:28]} {[%emt
00:00:02]} 46. Kh3 {[%clk 00:00:12]} {[%emt 00:00:02]} Qh6+ {[%clk 00:00:32]}
47. Kg3 {[%clk 00:00:14]} {[%emt 00:00:05]} Qf4+ {[%clk 00:00:36]} {[%emt
00:00:02]} 48. Kh3 {[%clk 00:00:15]} {[%emt 00:00:03]} Qh6+ {[%emt 00:00:13]}
1/2-1/2